bitfinex/quotes_ETHUSD_20250824
["timestamp","ask_amount","ask_price","bid_price","bid_amount"]
[1756047515413,0.002,4804.8,4804.0,2.065]
[1756047515414,3.0,4804.7,4804.0,2.065]
[1756047515711,6.91991731,4804.2,4804.0,2.065]
[1756047515925,6.91991731,4804.2,4804.1,0.7737]
[1756047516616,3.0,4804.5,4804.1,0.7737]
[1756047516817,3.0,4804.5,4804.2,0.464]
[1756047517004,3.0,4804.5,4804.4,0.3097]
[1756047517185,3.0,4804.5,4804.4,0.7737]
[1756047520718,10.05,4804.5,4804.4,0.7737]
[1756047521115,7.05,4804.5,4804.4,0.7737]
[1756047523891,0.002,4804.8,4804.4,0.7737]
[1756047524087,0.002,4804.8,4804.5,0.464]
[1756047524290,0.002,4804.8,4804.7,0.3097]
[1756047525008,0.002,4804.8,4804.7,0.7737]
[1756047532988,7.052,4804.8,4804.7,0.7737]
[1756047533394,7.052,4804.8,4804.3,0.4604]
[1756047533633,0.099,4804.4,4803.2,1.601]
[1756047533924,6.91991731,4803.4,4803.1,0.041]
[1756047538105,6.91991731,4803.4,4803.2,0.4604]
[1756047538633,0.625911,4803.9,4803.3,0.3161]
[1756047538809,3.0,4803.8,4803.3,0.3161]
[1756047539205,3.0,4803.8,4803.3,0.7765]
[1756047539432,10.661,4804.3,4803.3,0.7765]
[1756047539433,7.05,4804.3,4803.4,0.4604]
[1756047539644,7.05,4804.3,4803.4,0.5644]
[1756047539645,3.0,4804.0,4803.4,0.5644]
[1756047540427,3.0,4804.0,4803.9,0.3161]
[1756047541000,3.0,4804.0,4803.9,0.7765]
[1756047541812,3.0,4804.0,4803.4,1.705]
[1756047541813,3.0,4804.0,4803.5,0.4604]
[1756047542039,3.0,4804.0,4803.4,1.705]
[1756047542223,3.0,4804.0,4803.9,0.3161]
[1756047542539,4.79599173,4804.0,4803.4,1.705]
[1756047542742,4.79599173,4804.0,4803.6,3.611]
[1756047542911,4.69699173,4804.0,4803.6,3.611]
[1756047543109,3.0,4804.0,4803.7,0.4604]
[1756047543311,3.0,4804.0,4803.9,0.3161]
[1756047543844,3.0,4804.0,4803.9,0.7765]
[1756047544221,3.0,4804.0,4803.9,0.3161]
[1756047544810,3.0,4804.0,4803.9,0.7765]
[1756047545846,6.91991731,4804.1,4803.9,0.7765]
[1756047546056,3.0,4804.2,4803.9,0.7765]
[1756047546238,3.0,4804.2,4804.0,0.4604]
[1756047546542,3.0,4804.2,4804.1,0.3161]
[1756047547108,2.02497473,4804.8,4804.1,0.3161]
[1756047547109,6.91991731,4804.6,4804.1,0.3161]
[1756047547339,6.91991731,4804.6,4803.8,0.5644]
[1756047547647,6.91991731,4804.6,4803.9,3.61]
[1756047547850,6.91991731,4804.6,4803.8,0.5644]
[1756047548058,3.0,4804.5,4804.0,0.4604]
[1756047548376,3.0,4804.5,4804.1,3.61]
[1756047548684,3.0,4804.5,4804.2,0.4604]
[1756047548988,0.099,4804.3,4803.6,0.001]
[1756047549142,6.91991731,4803.7,4803.6,0.001]
[1756047549330,3.0,4803.7,4803.6,0.001]
[1756047549530,3.0,4803.7,4803.6,0.3171]
[1756047549737,3.0,4803.7,4803.6,0.7775]
[1756047550141,3.0,4803.7,4803.6,0.001]
[1756047550784,3.099,4803.7,4803.6,0.001]
[1756047550931,11.02080904,4803.7,4803.6,0.001]
[1756047551129,10.01891731,4803.7,4803.6,0.001]
[1756047553261,3.0,4803.7,4803.6,0.001]
[1756047553430,3.0,4803.7,4803.6,0.3171]
[1756047554171,3.0,4803.7,4803.6,0.7775]
[1756047555367,3.0,4803.7,4803.6,4.3875]
[1756047556272,3.0,4804.1,4803.6,4.3875]
[1756047556466,3.0,4804.1,4803.7,0.4604]
[1756047556790,3.0,4804.1,4803.6,3.611]
[1756047556940,3.0,4804.1,4803.8,0.4604]
[1756047558740,3.0,4804.1,4803.6,3.611]
[1756047558942,3.0,4804.1,4803.7,0.4604]
[1756047561374,6.91991731,4803.8,4803.6,3.611]
[1756047562075,0.0031,4803.7,4803.6,0.001]
[1756047562370,0.0031,4803.7,4803.6,3.611]
[1756047563367,0.0031,4803.7,4803.6,0.001]
[1756047563368,3.0031,4803.7,4803.6,0.001]
[1756047563569,3.0031,4803.7,4803.6,3.61]
[1756047563876,4.0948009,4803.7,4803.6,0.001]
[1756047566818,0.002,4804.1,4803.6,0.728]
[1756047567083,0.002,4804.1,4803.7,2.0405]
[1756047567253,0.002,4804.1,4804.0,0.2875]
[1756047567449,0.002,4804.1,4804.0,3.609]
[1756047567653,0.101,4804.1,4804.0,3.609]
[1756047567854,0.002,4804.1,4804.0,3.609]
[1756047568282,0.002,4804.1,4804.0,4.336]
[1756047572079,0.002,4804.1,4804.0,4.44]
[1756047574007,0.002,4804.1,4804.0,0.831]
[1756047574212,0.002,4804.1,4804.0,4.439]
[1756047574905,0.002,4804.1,4804.0,0.831]
[1756047575111,0.002,4804.1,4804.0,4.439]
[1756047575315,0.002,4804.1,4804.0,0.3915]
[1756047575519,0.002,4804.1,4804.0,4.439]
[1756047580119,0.101,4804.1,4804.0,3.607]
[1756047580614,0.002,4804.1,4804.0,3.607]
[1756047580821,0.002,4804.1,4804.0,4.334]
[1756047581789,0.002,4804.1,4804.0,0.727]
[1756047581999,0.002,4804.1,4804.0,3.8945]
[1756047583834,0.002,4804.1,4804.0,4.334]
[1756047586115,0.002,4804.1,4804.0,3.8945]
[1756047586310,0.002,4804.1,4804.0,0.2875]
[1756047586515,0.002,4804.1,4804.0,3.8935]
[1756047586830,0.101,4804.1,4804.0,3.606]
[1756047587442,0.101,4804.1,4803.7,1.601]
[1756047587743,0.70209173,4804.0,4803.8,3.606]
[1756047588238,0.627783,4804.1,4803.8,3.606]
[1756047588438,0.627783,4804.1,4803.9,3.606]
[1756047590724,0.3129,4804.0,4803.7,1.601]
[1756047591035,3.0,4803.8,4803.7,1.601]
[1756047591242,4.69896003,4803.8,4803.7,5.206]
[1756047591448,4.79196003,4803.8,4803.7,1.601]
[1756047591751,4.69896003,4803.8,4803.7,3.605]
[1756047592049,5.32483103,4803.8,4803.7,3.605]
[1756047592208,5.32483103,4803.8,4803.6,0.001]
[1756047592416,1.32697483,4803.7,4803.6,0.001]
[1756047592644,1.62697483,4803.7,4803.6,0.001]
[1756047593253,1.53397483,4803.7,4803.6,0.001]
[1756047597349,11.45389214,4803.7,4803.6,0.001]
[1756047600273,3.66,4803.6,4803.1,0.041]
[1756047600436,10.87991731,4803.2,4803.1,0.041]
[1756047600635,14.48391731,4803.2,4803.1,0.041]
[1756047600875,16.67366267,4803.2,4803.1,0.041]
[1756047601058,16.75713867,4803.2,4803.1,0.041]
[1756047601245,0.66,4802.9,4802.8,0.021]
[1756047601440,7.5621,4802.9,4802.8,0.021]
[1756047601635,7.6718,4802.9,4802.8,0.021]
[1756047602054,7.755279,4802.9,4802.8,0.021]
[1756047603561,3.083479,4802.9,4802.8,0.021]
[1756047603764,3.40927483,4802.9,4802.8,0.7777]
[1756047603964,0.40927483,4802.9,4802.8,0.7777]
[1756047604167,0.083479,4802.9,4802.8,0.7777]
[1756047604362,6.91991731,4804.0,4802.8,1.38657]
[1756047604575,6.91991731,4803.6,4802.9,0.4698]
[1756047604878,6.91991731,4803.5,4802.8,0.021]
[1756047605177,6.91991731,4803.5,4803.0,0.4698]
[1756047605353,3.0,4803.0,4802.8,0.021]
[1756047605541,0.3,4802.9,4802.8,0.021]
[1756047605742,3.0,4803.9,4802.9,0.2869]
[1756047606057,0.3257515,4803.6,4802.9,0.7567]
[1756047606251,0.3257515,4803.6,4803.0,0.4698]
[1756047606464,0.083479,4804.0,4803.5,0.2869]
[1756047607273,0.083479,4804.0,4803.6,0.4698]
[1756047607442,0.083479,4804.0,4803.9,0.2869]
[1756047607988,0.083479,4804.0,4803.9,0.7567]
[1756047608438,0.002,4804.1,4803.9,0.7567]
[1756047608640,0.085479,4804.1,4804.0,0.4698]
[1756047608865,0.085479,4804.1,4804.0,0.7567]
[1756047609670,0.085479,4804.1,4804.0,0.2869]
[1756047609898,0.66,4804.0,4802.5,0.4698]
[1756047610079,10.21701731,4802.9,4802.1,0.04]
[1756047611757,10.88981731,4802.9,4802.1,0.04]
[1756047613515,12.97189272,4802.9,4802.1,0.04]
[1756047613685,13.05537172,4802.9,4802.1,0.04]
[1756047614428,13.38118272,4802.9,4802.1,0.04]
[1756047614585,15.44789842,4802.9,4802.1,0.04]
[1756047614782,13.36582301,4802.9,4802.1,0.04]
[1756047614980,16.95602301,4802.9,4802.1,0.04]
[1756047615405,19.03809842,4802.9,4802.1,0.04]
[1756047615616,19.14979842,4802.9,4802.1,0.04]
[1756047615817,17.06772301,4802.9,4802.1,0.04]
[1756047616117,16.95602301,4802.9,4802.1,0.04]
[1756047616333,19.03809842,4802.9,4802.1,0.04]
[1756047616911,13.35302301,4802.9,4802.1,0.04]
[1756047617082,16.95602301,4802.9,4802.1,0.04]
[1756047617296,13.35302301,4802.9,4802.1,0.5098]
[1756047617482,16.95602301,4802.9,4802.1,0.5098]
[1756047617679,19.03809842,4802.9,4802.1,0.04]
[1756047617883,19.14979842,4802.9,4802.1,0.04]
[1756047618186,5.74211876,4802.8,4802.1,0.04]
[1756047618388,8.17421048,4802.8,4802.1,0.04]
[1756047618588,8.27321048,4802.8,4802.1,0.04]
[1756047618895,3.66,4802.6,4802.1,0.04]
[1756047619097,10.67891731,4802.4,4802.1,0.04]
[1756047619295,12.76120949,4802.4,4802.1,0.04]
[1756047619613,12.76655063,4802.4,4802.1,0.04]
[1756047619818,13.09239672,4802.4,4802.1,0.04]
[1756047620019,20.14239672,4802.4,4802.1,0.04]
[1756047620219,20.22588472,4802.4,4802.1,0.04]
[1756047620415,22.3081769,4802.4,4802.1,0.04]
[1756047621095,20.22588472,4802.4,4802.1,0.04]
[1756047621285,22.3081769,4802.4,4802.1,0.04]
[1756047621494,23.9091769,4802.4,4802.1,0.04]
[1756047621801,24.2159769,4802.4,4802.1,0.04]
[1756047622620,23.9091769,4802.4,4802.1,0.04]
[1756047624500,23.9091769,4802.4,4801.8,0.021]
[1756047624501,0.66,4802.0,4801.8,0.021]
[1756047624710,0.66,4801.3,4800.8,0.021]
[1756047625032,12.95766009,4800.9,4800.8,0.021]
[1756047625236,46.55966009,4800.9,4800.8,0.021]
[1756047625395,46.77906493,4800.9,4800.8,0.021]
[1756047625596,2.08315973,4800.4,4799.3,0.4357]
[1756047625832,15.89807704,4800.4,4799.3,0.4357]
[1756047626135,3.0,4800.3,4798.9,0.4357]
[1756047626429,10.57991731,4799.9,4799.4,0.4357]
[1756047626629,3.66,4799.9,4799.3,0.4357]
[1756047626832,3.0,4799.9,4799.8,0.7604]
[1756047628531,3.0,4799.9,4799.8,0.7614]
[1756047629116,3.626398,4799.9,4799.8,0.7614]
[1756047630406,5.04122953,4799.9,4799.8,0.021]
[1756047630608,5.04122953,4799.9,4799.8,0.7614]
[1756047630947,9.30322953,4799.9,4799.8,0.021]
[1756047631154,9.30322953,4799.9,4799.8,0.3257]
[1756047631306,3.626398,4799.9,4799.8,0.7614]
[1756047635733,3.0,4799.9,4799.8,0.7614]
[1756047639580,3.0,4799.9,4799.8,0.021]
[1756047639748,3.0,4799.9,4799.8,0.3257]
[1756047639950,6.602,4799.9,4799.8,0.7614]
[1756047640164,7.98679006,4799.9,4799.8,0.021]
[1756047640362,11.30470737,4799.9,4799.8,0.7614]
[1756047640669,14.90670737,4799.9,4799.8,0.7614]
[1756047640868,11.30470737,4799.9,4799.8,0.7614]
[1756047641060,14.90670737,4799.9,4799.8,0.7614]
[1756047642132,11.30470737,4799.9,4799.8,0.7614]
[1756047642339,14.90570737,4799.9,4799.8,0.7614]
[1756047643240,14.90670737,4799.9,4799.8,0.7614]
[1756047644440,14.90570737,4799.9,4799.8,0.7614]
[1756047645082,11.30470737,4799.9,4799.8,0.7614]
[1756047645240,13.52091731,4799.9,4799.8,0.7614]
[1756047646840,9.91991731,4799.9,4799.8,0.7614]
[1756047647177,13.52091731,4799.9,4799.8,0.7614]
[1756047647345,13.52091731,4799.9,4799.8,0.3257]
[1756047647678,13.52091731,4799.9,4799.8,0.7614]
[1756047648375,15.00460737,4799.9,4799.8,0.021]
[1756047651480,15.66460737,4799.9,4799.8,0.021]
[1756047651679,16.11404312,4799.9,4799.8,0.021]
[1756047652176,12.51304312,4799.9,4799.8,0.021]
[1756047652479,16.11304312,4799.9,4799.8,0.021]
[1756047654059,16.4390686,4799.9,4799.8,0.021]
[1756047654261,23.4890686,4799.9,4799.8,0.021]
[1756047655244,23.7979686,4799.9,4799.8,0.021]
[1756047655648,23.4890686,4799.9,4799.8,0.021]
[1756047656867,24.7400686,4799.9,4799.8,0.021]
[1756047657110,2.74346359,4799.7,4799.3,0.001]
[1756047657275,10.57991731,4799.4,4799.3,0.001]
[1756047657477,16.71194684,4799.4,4799.3,0.001]
[1756047657677,16.81094684,4799.4,4799.3,0.001]
[1756047657984,17.44381697,4799.4,4799.3,0.001]
[1756047658204,13.54205651,4799.4,4799.3,0.001]
[1756047658413,17.14105651,4799.4,4799.3,0.001]
[1756047658709,16.81498638,4799.4,4799.3,0.001]
[1756047658912,16.89852838,4799.4,4799.3,0.001]
[1756047659114,16.13952838,4799.4,4799.3,0.3077]
[1756047659415,15.69009263,4799.4,4799.3,0.001]
[1756047660216,12.63985664,4799.4,4799.3,0.001]
[1756047660416,10.60245931,4799.4,4799.3,0.7607]
[1756047660581,13.61791731,4799.4,4799.3,0.001]
[1756047661078,15.97865135,4799.4,4799.3,0.001]
[1756047661410,16.06218335,4799.4,4799.3,0.001]
[1756047661715,18.21422516,4799.4,4799.3,0.001]
[1756047661881,4.911,4799.3,4799.1,0.04]
[1756047662076,9.41183404,4799.2,4799.1,0.04]
[1756047662276,8.9621,4799.2,4799.1,0.04]
[1756047663914,9.28816155,4799.2,4799.1,0.04]
[1756047664115,11.22694682,4799.2,4799.1,0.04]
[1756047666911,11.67994682,4799.2,4799.1,0.03]
[1756047667077,12.93094682,4799.2,4799.1,0.03]
[1756047668202,4.911,4799.1,4798.3,0.001]
[1756047668415,3.0,4798.4,4798.3,0.001]
[1756047668607,6.598,4798.4,4798.3,0.3077]
[1756047668786,6.598,4798.4,4798.3,0.7607]
[1756047668989,7.051,4798.4,4798.3,0.7607]
[1756047669185,7.051,4798.4,4796.1,0.04]
[1756047669186,1.911,4798.3,4796.1,0.04]
[1756047669385,3.66,4798.1,4797.3,0.453]
[1756047669585,10.68191731,4797.9,4796.5,0.104]
[1756047669788,10.68191731,4797.9,4796.1,0.04]
[1756047669789,10.68191731,4797.9,4797.1,0.493]
[1756047670720,9.91991731,4797.2,4797.1,0.04]
[1756047670887,13.51791731,4797.2,4797.1,0.04]
[1756047671087,14.41810802,4797.2,4797.1,0.3467]
[1756047671286,15.85991882,4797.2,4797.1,0.3467]
[1756047671518,17.21191882,4797.2,4797.1,0.04]
[1756047671737,15.96091882,4797.2,4797.1,0.04]
[1756047671886,15.85991882,4797.2,4797.1,0.04]
[1756047672304,4.911,4797.1,4796.8,0.02]
[1756047672503,3.7591,4796.9,4796.8,0.02]
[1756047672936,4.08531377,4796.9,4796.8,0.02]
[1756047674859,4.08531377,4796.9,4796.8,0.3267]
[1756047674860,0.98621377,4796.9,4796.8,0.3267]
[1756047675161,0.98621377,4796.9,4796.8,0.02]
[1756047675162,3.32731377,4796.9,4796.8,0.02]
[1756047675320,3.98731377,4796.9,4796.8,0.02]
[1756047675524,6.03907264,4796.9,4796.8,0.02]
[1756047675908,9.63597264,4796.9,4796.8,0.02]
[1756047676251,0.66,4796.8,4796.1,0.04]
[1756047676443,0.66,4796.3,4796.1,0.04]
[1756047676647,3.66,4796.3,4796.2,0.3067]
[1756047676808,3.66,4796.3,4796.1,0.04]
[1756047676809,10.61251262,4796.3,4796.1,0.04]
[1756047677011,1.911,4795.9,4794.8,0.02]
[1756047677232,3.66,4795.1,4794.2,0.453]
[1756047677452,10.57991731,4794.3,4794.2,0.453]
[1756047677626,14.17791731,4794.3,4794.2,0.7597]
[1756047677810,3.0,4794.3,4794.2,0.7597]
[1756047678008,9.91991731,4794.3,4794.2,0.7597]
[1756047678215,10.57991731,4794.3,4794.2,0.3067]
[1756047678434,14.17791731,4794.3,4794.2,0.7597]
[1756047678720,13.97091731,4794.3,4794.2,0.7597]
[1756047679350,13.97091731,4794.3,4794.2,0.3067]
[1756047679524,3.0,4794.2,4792.9,0.104]
[1756047680056,3.0,4794.2,4794.1,0.3467]
[1756047680345,3.0,4794.2,4794.1,0.7997]
[1756047680546,3.66,4794.2,4794.1,0.7997]
[1756047681146,7.258,4794.2,4794.1,0.7997]
[1756047681715,3.66,4794.2,4794.1,0.7997]
[1756047681912,8.45489841,4794.2,4794.1,0.7997]
[1756047682955,7.79489841,4794.2,4794.1,0.7997]
[1756047683653,4.19689841,4794.2,4794.1,0.7997]
[1756047683857,7.79489841,4794.2,4794.1,0.7997]
[1756047684833,3.0,4794.2,4794.1,0.7997]
[1756047685368,0.77936759,4794.3,4794.1,0.7997]
[1756047685542,6.92536759,4794.3,4794.2,0.457]
[1756047685756,3.32636759,4794.3,4794.2,0.7499]
[1756047686365,3.0,4794.3,4794.2,0.7499]
[1756047686934,0.32633141,4794.9,4794.2,0.7499]
[1756047687201,3.598,4795.3,4794.3,0.457]
[1756047687341,3.598,4795.3,4795.2,0.2929]
[1756047687680,3.92430317,4795.5,4795.2,0.7499]
[1756047687881,0.32630317,4795.5,4795.2,0.7499]
[1756047688035,0.32630317,4795.5,4795.3,0.457]
[1756047688244,0.32630317,4795.5,4795.4,0.2929]
[1756047688582,0.02,4795.8,4795.4,0.7499]
[1756047688741,0.02,4795.8,4795.5,0.457]
[1756047689052,0.02,4795.8,4795.7,0.2929]
[1756047689454,0.02,4795.8,4795.7,0.7499]
[1756047694694,0.02,4795.8,4795.7,0.99569]
[1756047694898,0.02,4795.8,4795.7,1.09969]
[1756047695287,0.02,4795.8,4795.7,3.18489132]
[1756047695504,0.02,4795.8,4795.7,1.09969]
[1756047696294,0.02,4795.8,4795.7,3.18489132]
[1756047699267,0.02,4795.8,4795.7,3.84489132]
[1756047699703,0.02,4795.8,4795.7,6.84489132]
[1756047700364,15.36255514,4799.2,4795.7,6.84489132]
[1756047700365,0.15755157,4799.9,4796.0,0.66]
[1756047700564,0.3089,4800.2,4797.8,0.3969]
[1756047700782,0.3089,4800.2,4797.8,7.68018863]
[1756047700963,0.3089,4799.6,4797.8,6.0529]
[1756047701170,0.083524,4798.2,4797.8,8.13718863]
[1756047701607,0.3089,4800.0,4797.8,8.13718863]
[1756047701774,0.103524,4798.8,4797.8,8.13718863]
[1756047703311,0.02,4798.8,4797.8,8.13718863]
[1756047703476,0.02,4798.8,4797.8,8.79718863]
[1756047703678,0.02,4798.8,4797.8,12.02772487]
[1756047707175,0.02,4798.8,4798.3,2.74407144]
[1756047707383,0.02,4798.8,4798.3,27.12692344]
[1756047707581,0.02,4798.8,4798.3,27.58392344]
[1756047708103,0.02,4798.8,4798.3,24.21258844]
[1756047708400,0.02,4798.8,4798.3,24.45837844]
[1756047709089,0.02,4798.8,4798.3,32.94034344]
[1756047709732,0.02,4798.8,4798.3,30.19459244]
[1756047710093,0.02,4798.8,4798.3,33.40296344]
[1756047710595,0.02,4798.8,4798.3,25.62750444]
[1756047711215,0.02,4798.8,4798.3,39.69078144]
[1756047711520,0.02,4798.8,4798.3,38.29062444]
[1756047711721,0.02,4798.8,4798.3,35.26929844]
[1756047712089,0.02,4798.8,4798.3,10.43776144]
[1756047712324,0.02,4798.8,4798.3,40.43776144]
[1756047712511,0.02,4798.8,4798.7,2.74389772]
[1756047712719,0.02,4798.8,4798.7,43.37877572]
[1756047712901,0.002,4798.9,4798.8,2.74385429]
[1756047713232,0.002,4798.9,4798.8,48.84680943]
[1756047713447,0.042,4800.4,4798.9,2.08381087]
[1756047713722,0.042,4800.4,4799.3,6.14663719]
[1756047713927,0.042,4800.4,4799.3,38.41327243]
[1756047714139,0.042,4800.4,4799.3,42.62071343]
[1756047714335,0.042,4800.4,4799.3,42.37233643]
[1756047715141,0.042,4800.4,4799.3,41.94331143]
[1756047715305,0.042,4800.4,4799.3,42.82378643]
[1756047715504,0.042,4800.4,4799.3,40.56734143]
[1756047715806,0.042,4800.4,4799.3,40.72704077]
[1756047716213,1e-08,4799.4,4799.3,45.57927277]
[1756047716831,1e-08,4799.4,4799.3,15.57927277]
[1756047717447,0.042,4800.4,4800.0,2.08333333]
[1756047717639,0.042,4800.4,4800.0,26.84367847]
[1756047717832,0.042,4800.4,4800.0,27.38907847]
[1756047718650,0.042,4800.4,4800.0,27.49190594]
[1756047718952,0.042,4800.4,4800.0,27.38907847]
[1756047719325,0.042,4800.4,4800.3,2.74320313]
[1756047719512,0.02,4800.8,4800.3,2.74320313]
[1756047719513,0.02,4800.8,4800.7,2.74302955]
[1756047719718,0.02,4800.8,4800.7,9.63302955]
[1756047720019,0.02,4800.8,4800.7,10.07442955]
[1756047720462,0.02,4800.8,4800.7,6.04202955]
[1756047720725,0.02,4800.8,4800.7,8.77702955]
[1756047720726,0.119,4800.8,4800.7,8.77702955]
[1756047720943,0.119,4800.8,4800.7,9.86304227]
[1756047721264,0.02,4800.8,4800.7,9.86304227]
[1756047721447,0.1211,4800.8,4800.7,6.27304227]
[1756047721621,0.1211,4800.8,4800.7,3.694]
[1756047721815,0.1211,4800.8,4800.7,5.77702955]
[1756047722289,0.02,4800.8,4800.7,6.51742955]
[1756047722453,0.02,4800.8,4800.7,7.17742955]
[1756047723188,0.02,4800.8,4800.7,6.43702955]
[1756047723368,0.02,4800.8,4800.7,7.33318235]
[1756047723369,0.119,4800.8,4800.7,7.33318235]
[1756047723553,0.02,4800.8,4800.7,10.52818235]
[1756047723775,0.02,4800.8,4800.7,11.07358235]
[1756047725381,0.02,4800.8,4800.7,13.26958235]
[1756047725786,0.002,4801.1,4801.0,4.93889939]
[1756047725987,0.002,4801.1,4801.0,14.90516083]
[1756047725988,1e-08,4801.1,4801.0,14.90516083]
[1756047726191,1e-08,4801.1,4801.0,30.70911597]
[1756047726783,1e-08,4801.1,4801.0,28.61711597]
[1756047728790,1e-08,4801.4,4801.3,5.74276924]
[1756047728991,0.042,4803.4,4802.3,5.74233554]
[1756047729211,0.042,4803.4,4802.3,11.23033554]
[1756047729407,0.042,4803.4,4802.3,11.33433554]
[1756047729560,0.139,4802.4,4802.3,11.03533554]
[1756047729759,0.04,4802.4,4802.3,11.03533554]
[1756047729965,0.04,4802.4,4802.3,11.93148834]
[1756047730166,0.139,4802.4,4802.3,11.93148834]
[1756047731412,0.04,4802.4,4802.3,12.23048834]
[1756047731701,0.04,4802.4,4802.3,8.64248834]
[1756047731897,0.04,4802.4,4802.3,11.93048834]
[1756047732325,0.04,4802.4,4802.3,12.67088834]
[1756047733833,0.04,4802.4,4802.3,8.64248834]
[1756047734035,0.04,4802.4,4802.3,11.93048834]
[1756047734244,0.139,4802.4,4802.3,8.34348834]
[1756047734386,0.139,4802.4,4802.3,11.93048834]
[1756047735524,0.139,4802.4,4802.3,8.03433554]
[1756047736306,0.04,4802.4,4802.3,8.03433554]
[1756047736805,0.139,4802.4,4802.3,8.03433554]
[1756047737542,0.04,4802.4,4802.3,8.33333554]
[1756047737905,0.04,4802.4,4802.3,11.33333554]
[1756047738106,0.04,4802.4,4802.3,12.89450945]
[1756047738348,0.139,4802.4,4802.3,9.59450945]
[1756047738524,0.139,4802.4,4802.3,8.03333554]
[1756047741245,0.04,4802.4,4802.3,8.03333554]
[1756047742319,0.04,4802.4,4802.3,11.80083554]
[1756047746052,0.04,4802.4,4802.3,11.33233554]
[1756047746219,0.04,4802.4,4802.3,7.44733554]
[1756047746422,0.139,4802.4,4802.3,11.03133554]
[1756047746639,0.04,4802.4,4802.3,11.31833554]
[1756047746831,0.04,4802.4,4802.3,12.65840945]
[1756047747981,0.042,4802.4,4802.3,12.65840945]
[1756047748179,0.042,4802.4,4802.3,13.12690945]
[1756047748548,0.042,4802.4,4802.3,12.37140945]
[1756047749174,0.042,4802.4,4802.3,13.12690945]
[1756047750175,0.042,4802.4,4802.3,12.37140945]
[1756047750776,0.042,4802.4,4802.3,12.65840945]
[1756047751281,0.042,4802.4,4802.3,13.12690945]
[1756047751497,0.1411,4802.4,4802.2,1.601]
[1756047751987,0.043,4802.4,4802.3,3.584]
[1756047752486,0.1401,4802.4,4802.3,3.584]
[1756047759490,0.1401,4802.4,4802.3,3.583]
[1756047759691,2.13246551,4802.4,4802.2,1.601]
[1756047759919,2.03536551,4802.4,4802.3,3.583]
[1756047760407,2.13246551,4802.4,4802.3,3.583]
[1756047760714,2.13246551,4802.4,4802.2,1.601]
[1756047760882,2.03536551,4802.4,4802.3,3.583]
[1756047761574,0.2802,4802.4,4802.3,3.583]
[1756047766143,0.1831,4802.4,4802.3,3.583]
[1756047766316,0.1821,4802.4,4802.3,3.87]
[1756047766497,0.1821,4802.4,4802.3,3.583]
[1756047767014,0.042,4802.4,4802.3,3.583]
[1756047769209,0.3352,4802.4,4802.3,3.583]
[1756047771530,1.4383113,4802.4,4802.2,1.705]
[1756047771705,0.1136,4802.3,4802.2,1.601]
[1756047771896,0.405,4802.3,4802.2,5.184]
[1756047773132,0.2914,4802.3,4802.2,5.184]
[1756047773345,1.50265253,4802.3,4802.2,5.184]
[1756047775532,11.55265253,4802.3,4802.2,5.184]
[1756047775838,11.26125253,4802.3,4802.2,5.184]
[1756047776006,7.05,4802.3,4802.2,5.596]
[1756047776200,7.05,4802.3,4802.2,6.0641]
[1756047776719,7.149,4802.3,4802.2,5.287]
[1756047776925,7.05,4802.3,4802.2,5.595]
[1756047777239,7.05,4802.3,4802.2,1.705]
[1756047777445,10.9207946,4802.3,4802.2,5.183]
[1756047777649,11.5468086,4802.3,4802.2,3.582]
[1756047778024,7.05,4802.3,4802.2,4.4621]
[1756047778623,7.0531,4802.3,4802.2,3.686]
[1756047778835,7.05,4802.3,4802.2,4.4621]
[1756047780238,7.05,4802.3,4802.2,3.994]
[1756047780438,7.05,4802.3,4802.2,4.4621]
[1756047780643,0.042,4802.4,4802.2,4.4621]
[1756047780852,0.042,4802.4,4802.3,2.55043554]
[1756047781163,0.042,4802.4,4802.3,2.85843554]
[1756047781351,0.042,4802.4,4802.3,0.7761]
[1756047781852,0.042,4802.4,4802.3,0.308]
[1756047782219,0.042,4802.4,4802.3,3.889]
[1756047782425,0.042,4802.4,4802.3,4.3571]
[1756047782627,0.042,4802.4,4802.3,4.80331]
[1756047782832,0.042,4802.4,4802.3,4.90731]
[1756047783138,0.042,4802.4,4802.3,4.4611]
[1756047783552,0.042,4802.4,4802.3,3.993]
[1756047784261,0.1409,4802.4,4802.3,0.104]
[1756047784562,0.1409,4802.4,4802.3,3.685]
[1756047785372,0.1409,4802.4,4802.3,0.104]
[1756047785679,0.1409,4802.4,4802.3,3.685]
[1756047786036,0.1409,4802.4,4802.1,0.001]
[1756047786232,0.1409,4802.4,4802.3,3.581]
[1756047788355,0.2818,4802.4,4802.3,3.581]
[1756047788951,0.1829,4802.4,4802.3,4.3571]
[1756047789180,0.1829,4802.4,4802.3,4.4611]
[1756047789542,0.042,4802.4,4802.3,4.4611]
[1756047795487,0.042,4802.4,4802.3,7.19789146]
[1756047798904,0.042,4802.4,4802.3,7.85789146]
[1756047800443,0.042,4802.4,4802.3,10.85889146]
[1756047802231,0.042,4802.4,4802.3,15.86289146]
[1756047806135,0.042,4802.4,4802.3,15.85989146]